[Event "Titled Tuesday Blitz September 28 2021"]
[White "Lukovic, Vladimir"]
[Black "Bortnyk, Olexandr"]
[WhiteFideId "942952"]
[BlackFideId "14120828"]
[WhiteElo "2716"]
[BlackElo "2952"]
[Result "0-1"]
[Round "03"]
[TimeControl "180+1"]
[Date "2021.09.28"]
[WhiteClock "0:00:04"]
[BlackClock "0:00:09"]

1. e4 {[%clk 0:03:00]}  Nf6 {[%clk 0:02:42]} 2. e5 {[%clk 0:02:59]}  Nd5 {[%clk 0:02:42]} 3. Nc3 {[%clk 0:02:58]}  Nxc3 {[%clk 0:02:42]} 4. dxc3 {[%clk 0:02:59]}  d6 {[%clk 0:02:42]} 5. Bf4 {[%clk 0:02:58]}  Nc6 {[%clk 0:02:41]} 6. Bb5 {[%clk 0:02:58]}  Bd7 {[%clk 0:02:31]} 7. Qe2 {[%clk 0:02:52]}  a6 {[%clk 0:02:25]} 8. Bc4 {[%clk 0:02:43]}  e6 {[%clk 0:02:06]} 9. O-O-O {[%clk 0:02:32]}  d5 {[%clk 0:02:04]} 10. Bd3 {[%clk 0:02:31]}  Na5 {[%clk 0:02:00]} 11. Nf3 {[%clk 0:02:21]}  c5 {[%clk 0:02:00]} 12. c4 {[%clk 0:02:12]}  Nxc4 {[%clk 0:01:46]} 13. Bxc4 {[%clk 0:02:12]}  dxc4 {[%clk 0:01:47]} 14. Qxc4 {[%clk 0:02:08]}  Be7 {[%clk 0:01:39]} 15. h4 {[%clk 0:01:58]}  h6 {[%clk 0:01:38]} 16. Rh3 {[%clk 0:01:55]}  Qa5 {[%clk 0:01:31]} 17. Bd2 {[%clk 0:01:20]}  Qa4 {[%clk 0:01:24]} 18. Qxa4 {[%clk 0:01:17]}  Bxa4 {[%clk 0:01:25]} 19. Rg3 {[%clk 0:01:16]}  g6 {[%clk 0:01:20]} 20. h5 {[%clk 0:01:08]}  g5 {[%clk 0:01:13]} 21. Nh2 {[%clk 0:01:09]}  O-O-O {[%clk 0:01:10]} 22. Ng4 {[%clk 0:01:07]}  Bb5 {[%clk 0:00:57]} 23. Re3 {[%clk 0:01:07]}  Rd4 {[%clk 0:00:55]} 24. f3 {[%clk 0:01:04]}  Bc6 {[%clk 0:00:34]} 25. Ree1 {[%clk 0:01:02]}  b6 {[%clk 0:00:30]} 26. Be3 {[%clk 0:01:01]}  Rd5 {[%clk 0:00:30]} 27. c4 {[%clk 0:01:00]}  Rd7 {[%clk 0:00:28]} 28. Kc2 {[%clk 0:00:56]}  Bf8 {[%clk 0:00:27]} 29. Rxd7 {[%clk 0:00:54]}  Kxd7 {[%clk 0:00:28]} 30. Rd1+ {[%clk 0:00:54]}  Kc7 {[%clk 0:00:29]} 31. a3 {[%clk 0:00:47]}  a5 {[%clk 0:00:28]} 32. Kc3 {[%clk 0:00:44]}  Bg7 {[%clk 0:00:28]} 33. b3 {[%clk 0:00:39]}  Ra8 {[%clk 0:00:22]} 34. Rb1 {[%clk 0:00:33]}  Rd8 {[%clk 0:00:22]} 35. b4 {[%clk 0:00:31]}  axb4+ {[%clk 0:00:13]} 36. axb4 {[%clk 0:00:31]}  Bf8 {[%clk 0:00:13]} 37. bxc5 {[%clk 0:00:24]}  bxc5 {[%clk 0:00:14]} 38. Ra1 {[%clk 0:00:23]}  Kb6 {[%clk 0:00:12]} 39. Kc2 {[%clk 0:00:18]}  Bb7 {[%clk 0:00:11]} 40. Rb1+ {[%clk 0:00:16]}  Kc7 {[%clk 0:00:11]} 41. Nf6 {[%clk 0:00:13]}  Ra8 {[%clk 0:00:09]} 42. Rb5 {[%clk 0:00:01]}  Bc6 {[%clk 0:00:08]} 43. Rb2 {[%clk 0:00:01]}  Ra3 {[%clk 0:00:09]} 44. Bd2 {[%clk 0:00:01]}  Ba4+ {[%clk 0:00:08]} 45. Kc1 {[%clk 0:00:01]}  Be7 {[%clk 0:00:09]} 46. Bc3 {[%clk 0:00:01]}  Rxc3+ {[%clk 0:00:09]} 47. Kd2 {[%clk 0:00:02]}  Rxc4 {[%clk 0:00:09]} 48. Ne4 {[%clk 0:00:02]}  Rd4+ {[%clk 0:00:09]} 49. Ke3 {[%clk 0:00:03]}  Bc6 {[%clk 0:00:09]} 50. Rc2 {[%clk 0:00:03]}  Bxe4 {[%clk 0:00:09]} 51. fxe4 {[%clk 0:00:04]}  g4 {[%clk 0:00:09]} 0-1


[Site "https://www.chess.com"]

[Event "Titled Tuesday Blitz September 28 2021"]
[White "Lysyj, Igor"]
[Black "Costachi, Mihnea"]
[WhiteFideId "4150120"]
[BlackFideId "1217518"]
[WhiteElo "2838"]
[BlackElo "2609"]
[Result "0-1"]
[Round "03"]
[TimeControl "180+1"]
[Date "2021.09.28"]
[WhiteClock "0:00:10"]
[BlackClock "0:00:53"]

1. d4 {[%clk 0:03:00]}  Nf6 {[%clk 0:02:57]} 2. c4 {[%clk 0:02:59]}  g6 {[%clk 0:02:58]} 3. Nc3 {[%clk 0:02:58]}  Bg7 {[%clk 0:02:58]} 4. e4 {[%clk 0:02:58]}  O-O {[%clk 0:02:59]} 5. Nf3 {[%clk 0:02:57]}  d6 {[%clk 0:03:00]} 6. Be2 {[%clk 0:02:57]}  Na6 {[%clk 0:03:00]} 7. O-O {[%clk 0:02:57]}  e5 {[%clk 0:03:00]} 8. Be3 {[%clk 0:02:56]}  c6 {[%clk 0:03:00]} 9. dxe5 {[%clk 0:02:52]}  dxe5 {[%clk 0:03:00]} 10. Qxd8 {[%clk 0:02:50]}  Rxd8 {[%clk 0:03:00]} 11. h3 {[%clk 0:02:51]}  Re8 {[%clk 0:02:51]} 12. c5 {[%clk 0:02:49]}  Nc7 {[%clk 0:02:51]} 13. Nd2 {[%clk 0:02:45]}  Be6 {[%clk 0:02:44]} 14. Rfd1 {[%clk 0:02:39]}  Rad8 {[%clk 0:02:42]} 15. b4 {[%clk 0:02:35]}  h5 {[%clk 0:02:36]} 16. a3 {[%clk 0:02:30]}  Kh7 {[%clk 0:02:36]} 17. Nc4 {[%clk 0:02:26]}  Bxc4 {[%clk 0:02:35]} 18. Bxc4 {[%clk 0:02:25]}  Ne6 {[%clk 0:02:32]} 19. Rxd8 {[%clk 0:02:15]}  Rxd8 {[%clk 0:02:32]} 20. Bxe6 {[%clk 0:02:13]}  fxe6 {[%clk 0:02:33]} 21. Kf1 {[%clk 0:02:12]}  Bh6 {[%clk 0:02:33]} 22. Ke2 {[%clk 0:01:59]}  Bxe3 {[%clk 0:02:32]} 23. fxe3 {[%clk 0:01:56]}  g5 {[%clk 0:02:33]} 24. a4 {[%clk 0:01:51]}  a6 {[%clk 0:02:10]} 25. g3 {[%clk 0:01:50]}  Kg6 {[%clk 0:02:09]} 26. Rb1 {[%clk 0:01:43]}  Rc8 {[%clk 0:02:01]} 27. Rd1 {[%clk 0:01:41]}  Kf7 {[%clk 0:02:00]} 28. Rf1 {[%clk 0:01:19]}  Ke7 {[%clk 0:01:58]} 29. Rd1 {[%clk 0:01:17]}  Ra8 {[%clk 0:01:48]} 30. Rb1 {[%clk 0:01:09]}  Kd7 {[%clk 0:01:45]} 31. Kd3 {[%clk 0:01:07]}  Ke7 {[%clk 0:01:43]} 32. Kc2 {[%clk 0:01:01]}  Nd7 {[%clk 0:01:40]} 33. a5 {[%clk 0:00:36]}  Rf8 {[%clk 0:01:39]} 34. Kd3 {[%clk 0:00:35]}  Rf2 {[%clk 0:01:33]} 35. Rh1 {[%clk 0:00:22]}  Nf6 {[%clk 0:01:32]} 36. h4 {[%clk 0:00:20]}  g4 {[%clk 0:01:32]} 37. Rb1 {[%clk 0:00:19]}  Rg2 {[%clk 0:01:31]} 38. Ne2 {[%clk 0:00:19]}  Nxe4 {[%clk 0:01:32]} 39. Kxe4 {[%clk 0:00:18]}  Rxe2 {[%clk 0:01:32]} 40. Rb3 {[%clk 0:00:17]}  Kf6 {[%clk 0:01:32]} 41. Rd3 {[%clk 0:00:17]}  Rb2 {[%clk 0:01:31]} 42. Rd7 {[%clk 0:00:15]}  Rxb4+ {[%clk 0:01:30]} 43. Kd3 {[%clk 0:00:16]}  e4+ {[%clk 0:01:26]} 44. Kc3 {[%clk 0:00:15]}  Rb5 {[%clk 0:01:27]} 45. Kc4 {[%clk 0:00:16]}  Rxa5 {[%clk 0:01:19]} 46. Rxb7 {[%clk 0:00:16]}  Ra3 {[%clk 0:01:17]} 47. Kd4 {[%clk 0:00:16]}  Ra4+ {[%clk 0:01:18]} 48. Kc3 {[%clk 0:00:16]}  a5 {[%clk 0:01:12]} 49. Rc7 {[%clk 0:00:15]}  Ke5 {[%clk 0:01:11]} 50. Rh7 {[%clk 0:00:14]}  Ra3+ {[%clk 0:01:12]} 51. Kc4 {[%clk 0:00:15]}  Rxe3 {[%clk 0:01:11]} 52. Rxh5+ {[%clk 0:00:15]}  Kf6 {[%clk 0:01:11]} 53. Rh6+ {[%clk 0:00:15]}  Kf5 {[%clk 0:01:11]} 54. Rh5+ {[%clk 0:00:15]}  Kf6 {[%clk 0:01:11]} 55. Rh6+ {[%clk 0:00:15]}  Kf7 {[%clk 0:01:11]} 56. Rh7+ {[%clk 0:00:15]}  Kg6 {[%clk 0:01:11]} 57. Rc7 {[%clk 0:00:14]}  Rxg3 {[%clk 0:01:11]} 58. Rxc6 {[%clk 0:00:15]}  Kf5 {[%clk 0:01:06]} 59. Ra6 {[%clk 0:00:14]}  Ra3 {[%clk 0:01:06]} 60. c6 {[%clk 0:00:14]}  Ra1 {[%clk 0:01:04]} 61. Kc3 {[%clk 0:00:13]}  Rc1+ {[%clk 0:01:03]} 62. Kd4 {[%clk 0:00:13]}  Kf4 {[%clk 0:00:59]} 63. h5 {[%clk 0:00:13]}  g3 {[%clk 0:00:59]} 64. Ra8 {[%clk 0:00:11]}  e5+ {[%clk 0:00:57]} 65. Kd5 {[%clk 0:00:10]}  g2 {[%clk 0:00:56]} 66. Rf8+ {[%clk 0:00:10]}  Ke3 {[%clk 0:00:56]} 67. Rg8 {[%clk 0:00:10]}  g1=Q {[%clk 0:00:56]} 68. Rxg1 {[%clk 0:00:10]}  Rxg1 {[%clk 0:00:57]} 69. h6 {[%clk 0:00:10]}  Rg8 {[%clk 0:00:53]} 0-1


[Site "https://www.chess.com"]

[Event "Titled Tuesday Blitz September 28 2021"]
[White "Moskalenko, Alexander"]
[Black "Baches Garcia, Guillermo"]
[WhiteFideId "4155351"]
[BlackFideId "2209764"]
[WhiteElo "2515"]
[BlackElo "2482"]
[Result "1-0"]
[Round "03"]
[TimeControl "180+1"]
[Date "2021.09.28"]
[WhiteClock "0:01:04"]
[BlackClock "0:00:01"]

1. e4 {[%clk 0:03:00]}  c5 {[%clk 0:02:59]} 2. Nf3 {[%clk 0:02:59]}  d6 {[%clk 0:03:00]} 3. d4 {[%clk 0:02:59]}  cxd4 {[%clk 0:03:01]} 4. Nxd4 {[%clk 0:03:00]}  Nf6 {[%clk 0:03:01]} 5. Nc3 {[%clk 0:03:00]}  Nc6 {[%clk 0:03:02]} 6. Bg5 {[%clk 0:03:00]}  e6 {[%clk 0:03:02]} 7. Qd2 {[%clk 0:03:01]}  h6 {[%clk 0:03:03]} 8. Bxf6 {[%clk 0:02:55]}  gxf6 {[%clk 0:03:04]} 9. O-O-O {[%clk 0:02:55]}  a6 {[%clk 0:03:04]} 10. f4 {[%clk 0:02:54]}  Bd7 {[%clk 0:03:04]} 11. Kb1 {[%clk 0:02:54]}  Qb6 {[%clk 0:03:04]} 12. Nf3 {[%clk 0:02:54]}  O-O-O {[%clk 0:03:01]} 13. f5 {[%clk 0:02:54]}  Be7 {[%clk 0:02:55]} 14. Bc4 {[%clk 0:02:54]}  Kb8 {[%clk 0:02:43]} 15. Ne2 {[%clk 0:02:52]}  Ne5 {[%clk 0:02:30]} 16. Bb3 {[%clk 0:02:49]}  Qf2 {[%clk 0:02:08]} 17. Ned4 {[%clk 0:02:43]}  Qxd2 {[%clk 0:02:02]} 18. Rxd2 {[%clk 0:02:44]}  Nxf3 {[%clk 0:01:53]} 19. gxf3 {[%clk 0:02:27]}  d5 {[%clk 0:01:45]} 20. fxe6 {[%clk 0:02:23]}  fxe6 {[%clk 0:01:45]} 21. exd5 {[%clk 0:02:24]}  e5 {[%clk 0:01:38]} 22. Ne2 {[%clk 0:02:21]}  Bd6 {[%clk 0:01:27]} 23. c4 {[%clk 0:01:54]}  Rhg8 {[%clk 0:01:25]} 24. Nc3 {[%clk 0:01:48]}  f5 {[%clk 0:01:18]} 25. Ba4 {[%clk 0:01:47]}  Bc8 {[%clk 0:01:11]} 26. a3 {[%clk 0:01:31]}  Bc5 {[%clk 0:01:09]} 27. b4 {[%clk 0:01:30]}  Bd4 {[%clk 0:01:03]} 28. Ne2 {[%clk 0:01:29]}  Be3 {[%clk 0:01:03]} 29. Rd3 {[%clk 0:01:30]}  f4 {[%clk 0:01:01]} 30. Nc3 {[%clk 0:01:26]}  Bf5 {[%clk 0:00:49]} 31. Ne4 {[%clk 0:01:25]}  Rg2 {[%clk 0:00:46]} 32. c5 {[%clk 0:01:23]}  Bd4 {[%clk 0:00:32]} 33. d6 {[%clk 0:01:23]}  Rdg8 {[%clk 0:00:19]} 34. Bc2 {[%clk 0:01:15]}  Bd7 {[%clk 0:00:06]} 35. Nf6 {[%clk 0:01:13]}  Bb5 {[%clk 0:00:07]} 36. Nxg8 {[%clk 0:01:12]}  Bxd3 {[%clk 0:00:07]} 37. Bxd3 {[%clk 0:01:13]}  Rxg8 {[%clk 0:00:06]} 38. Kc2 {[%clk 0:01:07]}  Rg2+ {[%clk 0:00:05]} 39. Kb3 {[%clk 0:01:07]}  b5 {[%clk 0:00:04]} 40. cxb6 {[%clk 0:01:06]}  Kb7 {[%clk 0:00:03]} 41. Kc4 {[%clk 0:01:06]}  Kxb6 {[%clk 0:00:04]} 42. Kd5 {[%clk 0:01:06]}  Rg1 {[%clk 0:00:02]} 43. Rxg1 {[%clk 0:01:06]}  Bxg1 {[%clk 0:00:03]} 44. h4 {[%clk 0:01:05]}  h5 {[%clk 0:00:01]} 45. Kxe5 {[%clk 0:01:04]} 1-0


[Site "https://www.chess.com"]

[Event "Titled Tuesday Blitz September 28 2021"]
[White "Nozdrachev, Leonid"]
[Black "Vokhidov, Shamsiddin"]
[WhiteFideId "24113433"]
[BlackFideId "14204223"]
[WhiteElo "2615"]
[BlackElo "2867"]
[Result "0-1"]
[Round "03"]
[TimeControl "180+1"]
[Date "2021.09.28"]
[WhiteClock "0:00:05"]
[BlackClock "0:00:54"]

1. e4 {[%clk 0:03:00]}  c5 {[%clk 0:02:59]} 2. c3 {[%clk 0:03:00]}  e5 {[%clk 0:02:57]} 3. Nf3 {[%clk 0:02:59]}  Nc6 {[%clk 0:02:57]} 4. Bc4 {[%clk 0:02:59]}  Nf6 {[%clk 0:02:56]} 5. d4 {[%clk 0:02:57]}  cxd4 {[%clk 0:02:56]} 6. cxd4 {[%clk 0:02:58]}  exd4 {[%clk 0:02:56]} 7. O-O {[%clk 0:02:51]}  Nxe4 {[%clk 0:02:56]} 8. Re1 {[%clk 0:02:49]}  d5 {[%clk 0:02:56]} 9. Bxd5 {[%clk 0:02:48]}  Qxd5 {[%clk 0:02:56]} 10. Nc3 {[%clk 0:02:48]}  Qd8 {[%clk 0:02:56]} 11. Rxe4+ {[%clk 0:02:41]}  Be7 {[%clk 0:02:50]} 12. Nxd4 {[%clk 0:02:40]}  O-O {[%clk 0:02:50]} 13. Nxc6 {[%clk 0:02:36]}  bxc6 {[%clk 0:02:51]} 14. Qxd8 {[%clk 0:02:32]}  Bxd8 {[%clk 0:02:52]} 15. Bf4 {[%clk 0:02:27]}  Bf5 {[%clk 0:02:45]} 16. Rc4 {[%clk 0:02:26]}  Rc8 {[%clk 0:02:43]} 17. Re1 {[%clk 0:02:22]}  Bb6 {[%clk 0:02:41]} 18. Be3 {[%clk 0:01:59]}  Rfe8 {[%clk 0:02:37]} 19. g4 {[%clk 0:01:52]}  Bd3 {[%clk 0:02:33]} 20. Ra4 {[%clk 0:01:51]}  Rcd8 {[%clk 0:02:18]} 21. Kg2 {[%clk 0:01:43]}  f6 {[%clk 0:02:17]} 22. Bxb6 {[%clk 0:01:37]}  axb6 {[%clk 0:02:14]} 23. Rxe8+ {[%clk 0:01:36]}  Rxe8 {[%clk 0:02:15]} 24. Rd4 {[%clk 0:01:34]}  Bg6 {[%clk 0:02:13]} 25. Rd6 {[%clk 0:01:33]}  Rc8 {[%clk 0:02:09]} 26. Na4 {[%clk 0:01:25]}  b5 {[%clk 0:02:04]} 27. Nc5 {[%clk 0:01:21]}  Bf7 {[%clk 0:01:59]} 28. b3 {[%clk 0:01:20]}  Ra8 {[%clk 0:01:46]} 29. a4 {[%clk 0:01:14]}  bxa4 {[%clk 0:01:46]} 30. bxa4 {[%clk 0:01:15]}  Bd5+ {[%clk 0:01:46]} 31. Kg3 {[%clk 0:01:12]}  Ra5 {[%clk 0:01:42]} 32. Rd8+ {[%clk 0:01:02]}  Kf7 {[%clk 0:01:41]} 33. Nd3 {[%clk 0:00:10]}  Rxa4 {[%clk 0:01:38]} 34. f3 {[%clk 0:00:06]}  Ra3 {[%clk 0:01:34]} 35. Ne1 {[%clk 0:00:06]}  Ke7 {[%clk 0:01:16]} 36. Rc8 {[%clk 0:00:06]}  Rc3 {[%clk 0:01:14]} 37. Rc7+ {[%clk 0:00:05]}  Kf8 {[%clk 0:01:12]} 38. Kf2 {[%clk 0:00:05]}  h6 {[%clk 0:01:08]} 39. h4 {[%clk 0:00:05]}  Kg8 {[%clk 0:01:03]} 40. g5 {[%clk 0:00:05]}  fxg5 {[%clk 0:01:02]} 41. hxg5 {[%clk 0:00:05]}  hxg5 {[%clk 0:01:03]} 42. Kg3 {[%clk 0:00:05]}  Kh7 {[%clk 0:01:01]} 43. Kg4 {[%clk 0:00:05]}  Re3 {[%clk 0:00:58]} 44. Ng2 {[%clk 0:00:02]}  Bxf3+ {[%clk 0:00:58]} 45. Kg3 {[%clk 0:00:02]}  Bxg2+ {[%clk 0:00:57]} 46. Kxg2 {[%clk 0:00:03]}  Rc3 {[%clk 0:00:57]} 47. Kf2 {[%clk 0:00:02]}  Kh6 {[%clk 0:00:57]} 48. Kg2 {[%clk 0:00:03]}  c5 {[%clk 0:00:55]} 49. Kf2 {[%clk 0:00:03]}  c4 {[%clk 0:00:56]} 50. Kg2 {[%clk 0:00:04]}  g6 {[%clk 0:00:56]} 51. Kf2 {[%clk 0:00:03]}  g4 {[%clk 0:00:56]} 52. Kg2 {[%clk 0:00:04]}  Kg5 {[%clk 0:00:56]} 53. Rc5+ {[%clk 0:00:04]}  Kf4 {[%clk 0:00:55]} 54. Rc6 {[%clk 0:00:05]}  Rc2+ {[%clk 0:00:55]} 55. Kg1 {[%clk 0:00:05]}  Kg3 {[%clk 0:00:55]} 56. Kf1 {[%clk 0:00:04]}  Rc1+ {[%clk 0:00:55]} 57. Ke2 {[%clk 0:00:05]}  Kg2 {[%clk 0:00:55]} 58. Rxc4 {[%clk 0:00:04]}  Rxc4 {[%clk 0:00:55]} 59. Kd3 {[%clk 0:00:04]}  Rf4 {[%clk 0:00:54]} 60. Ke3 {[%clk 0:00:05]}  Rf5 {[%clk 0:00:54]} 0-1


[Site "https://www.chess.com"]

[Event "Titled Tuesday Blitz September 28 2021"]
[White "Ozen, Bahadir"]
[Black "Zhigalko, Sergei"]
[WhiteFideId "6337058"]
[BlackFideId "13502956"]
[WhiteElo "2645"]
[BlackElo "2887"]
[Result "0-1"]
[Round "03"]
[TimeControl "180+1"]
[Date "2021.09.28"]
[WhiteClock "0:00:48"]
[BlackClock "0:00:15"]

1. Nf3 {[%clk 0:03:00]}  d5 {[%clk 0:03:00]} 2. g3 {[%clk 0:03:01]}  c6 {[%clk 0:03:00]} 3. Bg2 {[%clk 0:03:01]}  Bg4 {[%clk 0:03:01]} 4. h3 {[%clk 0:03:02]}  Bh5 {[%clk 0:03:01]} 5. O-O {[%clk 0:03:01]}  e6 {[%clk 0:03:01]} 6. d4 {[%clk 0:03:02]}  Nf6 {[%clk 0:02:59]} 7. c4 {[%clk 0:03:02]}  Be7 {[%clk 0:02:59]} 8. cxd5 {[%clk 0:03:00]}  exd5 {[%clk 0:02:58]} 9. Qb3 {[%clk 0:02:59]}  Qb6 {[%clk 0:02:54]} 10. Qe3 {[%clk 0:03:00]}  Qd8 {[%clk 0:02:52]} 11. Qb3 {[%clk 0:02:55]}  Qb6 {[%clk 0:02:44]} 12. Qe3 {[%clk 0:02:55]}  Bg6 {[%clk 0:02:43]} 13. Nh4 {[%clk 0:02:50]}  Qd8 {[%clk 0:02:42]} 14. Qb3 {[%clk 0:02:45]}  Qb6 {[%clk 0:02:30]} 15. Qe3 {[%clk 0:02:44]}  Nbd7 {[%clk 0:02:30]} 16. Nc3 {[%clk 0:02:41]}  Qd8 {[%clk 0:02:28]} 17. Nxg6 {[%clk 0:02:41]}  hxg6 {[%clk 0:02:28]} 18. Qd3 {[%clk 0:02:42]}  O-O {[%clk 0:02:28]} 19. h4 {[%clk 0:02:38]}  Re8 {[%clk 0:02:28]} 20. Bf3 {[%clk 0:02:38]}  Bd6 {[%clk 0:02:15]} 21. Bg5 {[%clk 0:02:35]}  Qe7 {[%clk 0:02:13]} 22. Kg2 {[%clk 0:02:32]}  Qe6 {[%clk 0:02:13]} 23. Bxf6 {[%clk 0:02:28]}  Nxf6 {[%clk 0:02:12]} 24. Rh1 {[%clk 0:02:20]}  Re7 {[%clk 0:02:11]} 25. Rab1 {[%clk 0:02:17]}  Rae8 {[%clk 0:02:06]} 26. e3 {[%clk 0:02:12]}  Ne4 {[%clk 0:01:56]} 27. h5 {[%clk 0:02:02]}  g5 {[%clk 0:01:40]} 28. Bxe4 {[%clk 0:01:33]}  dxe4 {[%clk 0:01:39]} 29. Qe2 {[%clk 0:01:34]}  Qf5 {[%clk 0:01:14]} 30. Rbd1 {[%clk 0:01:15]}  Bb4 {[%clk 0:00:45]} 31. a3 {[%clk 0:01:15]}  Bxc3 {[%clk 0:00:42]} 32. bxc3 {[%clk 0:01:16]}  Re6 {[%clk 0:00:40]} 33. c4 {[%clk 0:01:13]}  Rd8 {[%clk 0:00:33]} 34. Rd2 {[%clk 0:01:13]}  Rf6 {[%clk 0:00:33]} 35. Rb2 {[%clk 0:01:07]}  b6 {[%clk 0:00:32]} 36. Rd2 {[%clk 0:01:08]}  Rdd6 {[%clk 0:00:19]} 37. Kg1 {[%clk 0:01:05]}  Qa5 {[%clk 0:00:19]} 38. Ra2 {[%clk 0:01:04]}  Rf3 {[%clk 0:00:18]} 39. Rh2 {[%clk 0:00:54]}  Rdf6 {[%clk 0:00:18]} 40. Qd2 {[%clk 0:00:54]}  Qf5 {[%clk 0:00:17]} 41. Rc2 {[%clk 0:00:51]}  Rxg3+ {[%clk 0:00:17]} 42. Kf1 {[%clk 0:00:49]}  Rh3 {[%clk 0:00:16]} 43. Rg2 {[%clk 0:00:47]}  Rh1+ {[%clk 0:00:15]} 44. Rg1 {[%clk 0:00:48]}  Qh3+ {[%clk 0:00:15]} 0-1


[Site "https://www.chess.com"]

[Event "Titled Tuesday Blitz September 28 2021"]
[White "Parkhov, Yair"]
[Black "Drozdowski, Kacper"]
[WhiteFideId "2813408"]
[BlackFideId "1136720"]
[WhiteElo "2618"]
[BlackElo "2869"]
[Result "0-1"]
[Round "03"]
[TimeControl "180+1"]
[Date "2021.09.28"]
[WhiteClock "0:00:04"]
[BlackClock "0:01:14"]

1. d4 {[%clk 0:03:00]}  Nf6 {[%clk 0:02:59]} 2. c4 {[%clk 0:03:00]}  g6 {[%clk 0:02:59]} 3. Nc3 {[%clk 0:03:00]}  d5 {[%clk 0:03:00]} 4. cxd5 {[%clk 0:03:00]}  Nxd5 {[%clk 0:03:01]} 5. e4 {[%clk 0:02:59]}  Nxc3 {[%clk 0:03:01]} 6. bxc3 {[%clk 0:03:00]}  Bg7 {[%clk 0:03:01]} 7. Nf3 {[%clk 0:02:58]}  O-O {[%clk 0:03:01]} 8. Be2 {[%clk 0:02:51]}  c5 {[%clk 0:03:01]} 9. O-O {[%clk 0:02:50]}  Qa5 {[%clk 0:02:59]} 10. Bd2 {[%clk 0:02:47]}  Nd7 {[%clk 0:02:52]} 11. Bd3 {[%clk 0:02:26]}  Rd8 {[%clk 0:02:38]} 12. h3 {[%clk 0:02:16]}  Qc7 {[%clk 0:02:35]} 13. Bg5 {[%clk 0:02:06]}  Nf6 {[%clk 0:02:32]} 14. Qe2 {[%clk 0:02:02]}  b6 {[%clk 0:02:29]} 15. d5 {[%clk 0:01:59]}  Bb7 {[%clk 0:02:27]} 16. c4 {[%clk 0:01:59]}  h6 {[%clk 0:02:26]} 17. Bh4 {[%clk 0:01:57]}  Nh5 {[%clk 0:02:24]} 18. Rae1 {[%clk 0:01:44]}  g5 {[%clk 0:02:21]} 19. Nxg5 {[%clk 0:01:38]}  hxg5 {[%clk 0:02:21]} 20. Qxh5 {[%clk 0:01:38]}  gxh4 {[%clk 0:02:19]} 21. e5 {[%clk 0:01:38]}  e6 {[%clk 0:01:59]} 22. Re4 {[%clk 0:01:04]}  exd5 {[%clk 0:01:54]} 23. Rg4 {[%clk 0:01:02]}  Kf8 {[%clk 0:01:52]} 24. Re1 {[%clk 0:00:43]}  dxc4 {[%clk 0:01:45]} 25. Rxg7 {[%clk 0:00:14]}  Kxg7 {[%clk 0:01:40]} 26. e6 {[%clk 0:00:15]}  Rxd3 {[%clk 0:01:19]} 27. Qg5+ {[%clk 0:00:09]}  Kf8 {[%clk 0:01:19]} 28. e7+ {[%clk 0:00:08]}  Ke8 {[%clk 0:01:18]} 29. Qg8+ {[%clk 0:00:05]}  Kd7 {[%clk 0:01:18]} 30. e8=Q+ {[%clk 0:00:05]}  Rxe8 {[%clk 0:01:18]} 31. Qxe8+ {[%clk 0:00:06]}  Kd6 {[%clk 0:01:18]} 32. Qe5+ {[%clk 0:00:04]}  Kc6 {[%clk 0:01:18]} 33. Qe4+ {[%clk 0:00:04]}  Kb5 {[%clk 0:01:17]} 34. Qe8+ {[%clk 0:00:04]}  Qc6 {[%clk 0:01:15]} 35. Qxf7 {[%clk 0:00:04]}  Qxg2# {[%clk 0:01:14]} 0-1


[Site "https://www.chess.com"]

[Event "Titled Tuesday Blitz September 28 2021"]
[White "Perez Ponsa, Federico"]
[Black "Weetik, Vjacheslav"]
[WhiteFideId "117927"]
[BlackFideId "4153472"]
[WhiteElo "2855"]
[BlackElo "2613"]
[Result "1-0"]
[Round "03"]
[TimeControl "180+1"]
[Date "2021.09.28"]
[WhiteClock "0:01:30"]
[BlackClock "0:00:07"]

1. e4 {[%clk 0:03:00]}  c6 {[%clk 0:02:59]} 2. d4 {[%clk 0:03:00]}  d5 {[%clk 0:02:59]} 3. e5 {[%clk 0:03:01]}  Bf5 {[%clk 0:02:59]} 4. h4 {[%clk 0:03:01]}  Qb6 {[%clk 0:02:59]} 5. h5 {[%clk 0:02:58]}  h6 {[%clk 0:02:58]} 6. c4 {[%clk 0:02:57]}  e6 {[%clk 0:02:56]} 7. Nc3 {[%clk 0:02:47]}  Nd7 {[%clk 0:02:39]} 8. Nge2 {[%clk 0:02:41]}  dxc4 {[%clk 0:02:23]} 9. Ng3 {[%clk 0:02:41]}  Bd3 {[%clk 0:02:21]} 10. Bxd3 {[%clk 0:02:38]}  cxd3 {[%clk 0:02:22]} 11. Qxd3 {[%clk 0:02:39]}  Ne7 {[%clk 0:02:21]} 12. Be3 {[%clk 0:02:34]}  Nd5 {[%clk 0:02:20]} 13. Nxd5 {[%clk 0:02:33]}  cxd5 {[%clk 0:02:19]} 14. O-O {[%clk 0:02:34]}  Be7 {[%clk 0:02:06]} 15. f4 {[%clk 0:02:34]}  Bh4 {[%clk 0:01:54]} 16. Ne2 {[%clk 0:02:30]}  O-O-O {[%clk 0:01:30]} 17. a4 {[%clk 0:02:19]}  Kb8 {[%clk 0:01:29]} 18. a5 {[%clk 0:02:19]}  Qa6 {[%clk 0:01:29]} 19. Qxa6 {[%clk 0:02:15]}  bxa6 {[%clk 0:01:30]} 20. f5 {[%clk 0:02:16]}  Rhf8 {[%clk 0:01:04]} 21. Bd2 {[%clk 0:02:15]}  Be7 {[%clk 0:01:00]} 22. Rac1 {[%clk 0:02:10]}  Rc8 {[%clk 0:01:00]} 23. Rxc8+ {[%clk 0:02:06]}  Kxc8 {[%clk 0:00:57]} 24. Nf4 {[%clk 0:02:07]}  Bg5 {[%clk 0:00:51]} 25. Bb4 {[%clk 0:02:07]}  Re8 {[%clk 0:00:48]} 26. fxe6 {[%clk 0:02:07]}  fxe6 {[%clk 0:00:48]} 27. Bd6 {[%clk 0:02:07]}  Kb7 {[%clk 0:00:45]} 28. Nd3 {[%clk 0:02:01]}  Be3+ {[%clk 0:00:36]} 29. Kh2 {[%clk 0:02:01]}  Bxd4 {[%clk 0:00:35]} 30. Rf7 {[%clk 0:02:00]}  Rd8 {[%clk 0:00:31]} 31. Rxg7 {[%clk 0:01:59]}  Kc6 {[%clk 0:00:30]} 32. Re7 {[%clk 0:01:58]}  Kb5 {[%clk 0:00:19]} 33. Rxe6 {[%clk 0:01:54]}  Kc4 {[%clk 0:00:18]} 34. Nf4 {[%clk 0:01:51]}  Bxb2 {[%clk 0:00:18]} 35. Be7 {[%clk 0:01:49]}  Bxe5 {[%clk 0:00:08]} 36. Rxe5 {[%clk 0:01:40]}  Nxe5 {[%clk 0:00:08]} 37. Bxd8 {[%clk 0:01:40]}  d4 {[%clk 0:00:08]} 38. Kg1 {[%clk 0:01:31]}  d3 {[%clk 0:00:08]} 39. Kf2 {[%clk 0:01:31]}  Kc3 {[%clk 0:00:07]} 40. Bf6 {[%clk 0:01:30]}  Kd4 {[%clk 0:00:07]} 41. Bxe5+ {[%clk 0:01:30]}  Kxe5 {[%clk 0:00:08]} 42. Nxd3+ {[%clk 0:01:30]}  Kf5 {[%clk 0:00:07]} 43. Nc5 {[%clk 0:01:30]} 1-0


[Site "https://www.chess.com"]